[Event "*** Titled Tuesday Blitz"]
[Site "Chess.com"]
[Date "2020.12.01"]
[Round "10"]
[White "bascheyaro"]
[Black "Mr_Sinigami"]
[Result "1-0"]
[WhiteElo "2746"]
[BlackElo "2586"]
[TimeControl "180+1"]
[EndTime "11:55:39 PST"]
[Termination "bascheyaro won by resignation"]

1. d4 {[%clk 0:03:00.9]} 1... Nf6 {[%clk 0:02:58.8]} 2. Nf3 {[%clk 0:03:00.5]}
2... g6 {[%clk 0:02:59.1]} 3. c4 {[%clk 0:03:00.8]} 3... Bg7 {[%clk 0:02:59.5]}
4. Nc3 {[%clk 0:03:01.3]} 4... O-O {[%clk 0:02:59.6]} 5. Bf4 {[%clk 0:03:01.5]}
5... d6 {[%clk 0:02:51.5]} 6. e3 {[%clk 0:03:01.3]} 6... Nfd7 {[%clk 0:02:47.7]}
7. Be2 {[%clk 0:03:00.8]} 7... e5 {[%clk 0:02:46.2]} 8. Bg5 {[%clk 0:03:00.7]}
8... f6 {[%clk 0:02:44.1]} 9. Bh4 {[%clk 0:03:00.8]} 9... g5 {[%clk 0:02:40.5]}
10. Bg3 {[%clk 0:03:00.8]} 10... f5 {[%clk 0:02:40.9]} 11. dxe5 {[%clk
0:03:00.7]} 11... Nxe5 {[%clk 0:02:32.7]} 12. Bxe5 {[%clk 0:02:58.6]} 12... dxe5
{[%clk 0:02:21.6]} 13. Qxd8 {[%clk 0:02:57.8]} 13... Rxd8 {[%clk 0:02:22.5]} 14.
Nxg5 {[%clk 0:02:50.2]} 14... h6 {[%clk 0:02:15.3]} 15. Nf3 {[%clk 0:02:50.2]}
15... e4 {[%clk 0:02:14.1]} 16. Nd4 {[%clk 0:02:50.4]} 16... Bxd4 {[%clk
0:02:10.8]} 17. exd4 {[%clk 0:02:51.3]} 17... Rxd4 {[%clk 0:02:10]} 18. Nb5
{[%clk 0:02:49.2]} 18... Rd7 {[%clk 0:02:04.1]} 19. Rd1 {[%clk 0:02:49]} 19...
c6 {[%clk 0:01:58.6]} 20. Nd6 {[%clk 0:02:32.4]} 20... Na6 {[%clk 0:01:56.4]}
21. O-O {[%clk 0:02:23.6]} 21... Rd8 {[%clk 0:01:33.2]} 22. a3 {[%clk
0:02:14.4]} 22... Rb8 {[%clk 0:01:31.9]} 23. b4 {[%clk 0:02:12.2]} 23... Be6
{[%clk 0:01:31.5]} 24. Rd2 {[%clk 0:02:01.5]} 24... c5 {[%clk 0:01:28.5]} 25. b5
{[%clk 0:01:57.1]} 25... Nc7 {[%clk 0:01:28.1]} 26. Rfd1 {[%clk 0:01:57.2]}
26... b6 {[%clk 0:01:23.7]} 27. f4 {[%clk 0:01:52.7]} 27... Kf8 {[%clk
0:01:17.8]} 28. g4 {[%clk 0:01:45.8]} 28... fxg4 {[%clk 0:01:13.8]} 29. f5
{[%clk 0:01:46.1]} 29... Bg8 {[%clk 0:00:58.5]} 30. Kf2 {[%clk 0:01:38.4]} 30...
Ne8 {[%clk 0:00:42.4]} 31. Nxe4 {[%clk 0:01:35.8]} 31... Rxd2 {[%clk 0:00:39.7]}
32. Rxd2 {[%clk 0:01:36.7]} 32... Ke7 {[%clk 0:00:40]} 33. Ke3 {[%clk
0:01:30.1]} 33... h5 {[%clk 0:00:39.1]} 34. Kf4 {[%clk 0:01:28]} 34... a6 {[%clk
0:00:21.5]} 35. Ke5 {[%clk 0:01:20.4]} 35... axb5 {[%clk 0:00:21.2]} 36. f6+
{[%clk 0:01:20]} 36... Kf8 {[%clk 0:00:20.5]} 37. cxb5 {[%clk 0:01:10.3]} 37...
Ra8 {[%clk 0:00:19.3]} 38. h3 {[%clk 0:00:53.1]} 38... gxh3 {[%clk 0:00:17.2]}
39. Bxh5 {[%clk 0:00:53.2]} 39... Rxa3 {[%clk 0:00:16.3]} 40. Rd8 {[%clk
0:00:13.8]} 40... Bf7 {[%clk 0:00:15.7]} 41. Bxf7 {[%clk 0:00:12.5]} 41... Kxf7
{[%clk 0:00:15.6]} 42. Ng5+ {[%clk 0:00:12.8]} 42... Kg6 {[%clk 0:00:11.3]} 43.
f7 {[%clk 0:00:12.9]} 43... h2 {[%clk 0:00:06.3]} 44. fxe8=Q+ {[%clk 0:00:12.6]}
44... Kxg5 {[%clk 0:00:06.6]} 45. Qg8+ {[%clk 0:00:11.8]} 45... Kh4 {[%clk
0:00:06.4]} 46. Qh7+ {[%clk 0:00:09.9]} 46... Kg3 {[%clk 0:00:06.5]} 47. Rg8+
{[%clk 0:00:10]} 47... Kf3 {[%clk 0:00:05.5]} 48. Qh3+ {[%clk 0:00:09.7]} 1-0

[Event "*** Titled Tuesday Blitz"]
[Site "Chess.com"]
[Date "2020.12.01"]
[Round "10"]
[White "ChessQueen"]
[Black "Vincent_Vega95"]
[Result "0-1"]
[WhiteElo "2716"]
[BlackElo "2773"]
[TimeControl "180+1"]
[EndTime "11:55:42 PST"]
[Termination "Vincent_Vega95 won by resignation"]

1. e4 {[%clk 0:03:00.9]} 1... c5 {[%clk 0:02:59.9]} 2. c3 {[%clk 0:03:00.8]}
2... d5 {[%clk 0:02:57.8]} 3. exd5 {[%clk 0:03:00.8]} 3... Qxd5 {[%clk
0:02:58.7]} 4. d4 {[%clk 0:03:01.4]} 4... Nf6 {[%clk 0:02:58.8]} 5. Nf3 {[%clk
0:03:01.8]} 5... e6 {[%clk 0:02:59]} 6. Be2 {[%clk 0:03:01.6]} 6... cxd4 {[%clk
0:02:59.1]} 7. cxd4 {[%clk 0:03:01.4]} 7... Be7 {[%clk 0:02:56.8]} 8. Nc3 {[%clk
0:03:01.3]} 8... Qd8 {[%clk 0:02:56.7]} 9. O-O {[%clk 0:03:00.6]} 9... O-O
{[%clk 0:02:56.1]} 10. Ne5 {[%clk 0:02:51.5]} 10... Nbd7 {[%clk 0:02:53.9]} 11.
Bf3 {[%clk 0:02:45.1]} 11... Nb6 {[%clk 0:02:53.6]} 12. Bg5 {[%clk 0:02:37.3]}
12... Nfd5 {[%clk 0:02:53.7]} 13. Bxe7 {[%clk 0:02:25.4]} 13... Nxe7 {[%clk
0:02:53.3]} 14. Qd3 {[%clk 0:02:19.2]} 14... Nbd5 {[%clk 0:02:50]} 15. Be4
{[%clk 0:02:09.2]} 15... g6 {[%clk 0:02:48.4]} 16. h4 {[%clk 0:02:06.9]} 16...
b6 {[%clk 0:02:33.6]} 17. h5 {[%clk 0:02:05.8]} 17... Bb7 {[%clk 0:02:33.9]} 18.
hxg6 {[%clk 0:01:57.8]} 18... hxg6 {[%clk 0:02:33.8]} 19. Qg3 {[%clk 0:01:44.1]}
19... Kg7 {[%clk 0:02:29.7]} 20. Rfe1 {[%clk 0:01:38.2]} 20... Rh8 {[%clk
0:02:17.3]} 21. Nc4 {[%clk 0:01:36.2]} 21... Rh5 {[%clk 0:01:47.5]} 22. f3
{[%clk 0:01:24.7]} 22... Rc8 {[%clk 0:01:23.7]} 23. Nd6 {[%clk 0:01:16.8]} 23...
Rc7 {[%clk 0:01:12.2]} 24. Nxb7 {[%clk 0:01:15.9]} 24... Rxb7 {[%clk 0:01:12.3]}
25. Kf2 {[%clk 0:01:08]} 25... Rd7 {[%clk 0:01:08.3]} 26. Rh1 {[%clk 0:01:01.6]}
26... Nf6 {[%clk 0:01:08.5]} 27. Rxh5 {[%clk 0:00:53.4]} 27... Nxh5 {[%clk
0:01:09.4]} 28. Qe5+ {[%clk 0:00:53.7]} 28... Nf6 {[%clk 0:01:09.3]} 29. Ne2
{[%clk 0:00:53.4]} 29... Qc7 {[%clk 0:00:58.7]} 30. Qxc7 {[%clk 0:00:38.7]}
30... Rxc7 {[%clk 0:00:58.7]} 31. Rc1 {[%clk 0:00:27]} 31... Rxc1 {[%clk
0:00:53]} 32. Nxc1 {[%clk 0:00:27.9]} 32... g5 {[%clk 0:00:51]} 33. Ne2 {[%clk
0:00:23.5]} 33... Ne8 {[%clk 0:00:38.5]} 34. Nc3 {[%clk 0:00:23.6]} 34... f5
{[%clk 0:00:38.5]} 35. Bd3 {[%clk 0:00:23.3]} 35... Kf6 {[%clk 0:00:36.3]} 36.
b3 {[%clk 0:00:23.7]} 36... Nd6 {[%clk 0:00:34.4]} 37. Bc4 {[%clk 0:00:24.1]}
37... Nc6 {[%clk 0:00:15.4]} 38. Ke3 {[%clk 0:00:23.8]} 38... Nb4 {[%clk
0:00:15.1]} 39. a4 {[%clk 0:00:22.2]} 39... Nc2+ {[%clk 0:00:15.3]} 40. Kd3
{[%clk 0:00:11.7]} 40... Ne1+ {[%clk 0:00:12.7]} 41. Kd2 {[%clk 0:00:06.1]}
41... Nxg2 {[%clk 0:00:12.7]} 42. Bf1 {[%clk 0:00:05.5]} 42... Nf4 {[%clk
0:00:12.6]} 43. Ke3 {[%clk 0:00:06.2]} 43... Ne8 {[%clk 0:00:11.2]} 44. Nb5
{[%clk 0:00:06.1]} 44... a6 {[%clk 0:00:11.5]} 45. Na7 {[%clk 0:00:05.8]} 45...
a5 {[%clk 0:00:11.4]} 46. Nc6 {[%clk 0:00:05.7]} 46... Nd5+ {[%clk 0:00:11.5]}
47. Kd3 {[%clk 0:00:05.7]} 47... Nd6 {[%clk 0:00:12]} 48. Kd2 {[%clk 0:00:05.4]}
48... g4 {[%clk 0:00:12.4]} 49. fxg4 {[%clk 0:00:05.3]} 49... fxg4 {[%clk
0:00:13.3]} 50. Ne5 {[%clk 0:00:06]} 50... Kf5 {[%clk 0:00:13.5]} 51. Ke2 {[%clk
0:00:05.8]} 51... Kf4 {[%clk 0:00:13.9]} 52. Kf2 {[%clk 0:00:06.1]} 52... Nf5
{[%clk 0:00:14.3]} 53. Kg1 {[%clk 0:00:06.9]} 53... Nxd4 {[%clk 0:00:14.5]} 54.
Bc4 {[%clk 0:00:07.1]} 54... Kxe5 {[%clk 0:00:14.4]} 0-1

[Event "*** Titled Tuesday Blitz"]
[Site "Chess.com"]
[Date "2020.12.01"]
[Round "10"]
[White "Jungle_Jaguar"]
[Black "ikhasu"]
[Result "1-0"]
[WhiteElo "2543"]
[BlackElo "2419"]
[TimeControl "180+1"]
[EndTime "11:55:42 PST"]
[Termination "Jungle_Jaguar won on time"]

1. e4 {[%clk 0:03:00.9]} 1... c5 {[%clk 0:02:57.3]} 2. Nf3 {[%clk 0:03:00.9]}
2... Nc6 {[%clk 0:02:56.7]} 3. d4 {[%clk 0:03:00.3]} 3... cxd4 {[%clk
0:02:56.9]} 4. Nxd4 {[%clk 0:03:01.2]} 4... g6 {[%clk 0:02:56.6]} 5. c4 {[%clk
0:02:48.4]} 5... Nf6 {[%clk 0:02:53.5]} 6. Nc3 {[%clk 0:02:48.1]} 6... d6 {[%clk
0:02:49.3]} 7. Be2 {[%clk 0:02:47.8]} 7... Nxd4 {[%clk 0:02:48.6]} 8. Qxd4
{[%clk 0:02:47.7]} 8... Bg7 {[%clk 0:02:48.7]} 9. O-O {[%clk 0:02:47.9]} 9...
O-O {[%clk 0:02:45.2]} 10. Rd1 {[%clk 0:02:47.7]} 10... Be6 {[%clk 0:02:39.1]}
11. Qd3 {[%clk 0:02:45.3]} 11... Nd7 {[%clk 0:02:35.9]} 12. Nd5 {[%clk
0:02:37.9]} 12... Rc8 {[%clk 0:02:25.3]} 13. Bg5 {[%clk 0:02:30.3]} 13... Bxd5
{[%clk 0:02:09.7]} 14. exd5 {[%clk 0:02:29.8]} 14... Bxb2 {[%clk 0:02:05.2]} 15.
Rab1 {[%clk 0:02:29.2]} 15... Bg7 {[%clk 0:01:36.5]} 16. Qe3 {[%clk 0:02:26.3]}
16... f6 {[%clk 0:01:32.1]} 17. Bf4 {[%clk 0:02:07.4]} 17... Nc5 {[%clk
0:01:28.7]} 18. Re1 {[%clk 0:01:59.5]} 18... Rc7 {[%clk 0:01:23.3]} 19. Bg4
{[%clk 0:01:48.4]} 19... b6 {[%clk 0:01:21.9]} 20. Be6+ {[%clk 0:01:42.7]} 20...
Kh8 {[%clk 0:01:17.3]} 21. h4 {[%clk 0:01:41.3]} 21... Nxe6 {[%clk 0:01:14.8]}
22. Qxe6 {[%clk 0:01:41]} 22... Rxc4 {[%clk 0:01:14.6]} 23. Bg3 {[%clk
0:01:35.1]} 23... Rc7 {[%clk 0:01:07.2]} 24. h5 {[%clk 0:01:35]} 24... Qc8
{[%clk 0:01:03.8]} 25. Qe3 {[%clk 0:01:24.3]} 25... Qf5 {[%clk 0:01:01.5]} 26.
h6 {[%clk 0:01:23.2]} 26... Qxd5 {[%clk 0:00:55.3]} 27. hxg7+ {[%clk 0:01:22.2]}
27... Kxg7 {[%clk 0:00:55.2]} 28. a4 {[%clk 0:01:15.9]} 28... h5 {[%clk
0:00:53.8]} 29. Rb5 {[%clk 0:00:56.3]} 29... Qc4 {[%clk 0:00:43.2]} 30. Bf4
{[%clk 0:00:55.3]} 30... Rfc8 {[%clk 0:00:37.9]} 31. Qg3 {[%clk 0:00:38.6]}
31... e5 {[%clk 0:00:36.4]} 32. Be3 {[%clk 0:00:29.8]} 32... Qxa4 {[%clk
0:00:35.8]} 33. Rd5 {[%clk 0:00:29.8]} 33... Rc6 {[%clk 0:00:24.8]} 34. Rdd1
{[%clk 0:00:28.3]} 34... Qg4 {[%clk 0:00:22.2]} 35. Qh2 {[%clk 0:00:19]} 35...
a5 {[%clk 0:00:20.7]} 36. Rb1 {[%clk 0:00:19]} 36... Rb8 {[%clk 0:00:16.2]} 37.
Rb5 {[%clk 0:00:18.4]} 37... Qc4 {[%clk 0:00:14.5]} 38. Reb1 {[%clk 0:00:18]}
38... a4 {[%clk 0:00:14.5]} 39. R5b4 {[%clk 0:00:15.2]} 39... Qc2 {[%clk
0:00:11.8]} 40. Qg3 {[%clk 0:00:12.3]} 40... a3 {[%clk 0:00:08.8]} 41. Rc1
{[%clk 0:00:10.4]} 41... Qxc1+ {[%clk 0:00:06.9]} 42. Bxc1 {[%clk 0:00:11.3]}
42... Rxc1+ {[%clk 0:00:07]} 43. Kh2 {[%clk 0:00:12.2]} 43... a2 {[%clk
0:00:07.3]} 44. Ra4 {[%clk 0:00:08.8]} 44... a1=Q {[%clk 0:00:06.7]} 45. Rxa1
{[%clk 0:00:09.1]} 45... Rxa1 {[%clk 0:00:06.8]} 46. Qd3 {[%clk 0:00:09.2]}
46... Rd8 {[%clk 0:00:03.4]} 47. Qb5 {[%clk 0:00:08.8]} 47... Raa8 {[%clk
0:00:01.7]} 48. Qxb6 {[%clk 0:00:09.5]} 48... Rd7 {[%clk 0:00:01.9]} 49. Qc6
{[%clk 0:00:10]} 49... Rad8 {[%clk 0:00:02.3]} 50. Qd5 {[%clk 0:00:10.9]} 50...
Rc8 {[%clk 0:00:01.7]} 51. f4 {[%clk 0:00:11.8]} 1-0

[Event "*** Titled Tuesday Blitz"]
[Site "Chess.com"]
[Date "2020.12.01"]
[Round "10"]
[White "Sebastian"]
[Black "sergiochess83"]
[Result "1-0"]
[WhiteElo "2953"]
[BlackElo "2803"]
[TimeControl "180+1"]
[EndTime "11:55:47 PST"]
[Termination "Sebastian won on time"]

1. e4 {[%clk 0:03:00.9]} 1... c5 {[%clk 0:02:58.9]} 2. Nf3 {[%clk 0:02:59.9]}
2... d6 {[%clk 0:02:58.7]} 3. d4 {[%clk 0:02:59.9]} 3... cxd4 {[%clk 0:02:59.1]}
4. Nxd4 {[%clk 0:03:00.5]} 4... Nf6 {[%clk 0:02:59.7]} 5. Nc3 {[%clk 0:03:01.1]}
5... a6 {[%clk 0:03:00]} 6. Bg5 {[%clk 0:03:01.7]} 6... Nbd7 {[%clk 0:02:59.2]}
7. Bc4 {[%clk 0:03:01.3]} 7... Qb6 {[%clk 0:02:57.8]} 8. Bb3 {[%clk 0:03:01.3]}
8... e6 {[%clk 0:02:56.6]} 9. Qd2 {[%clk 0:03:01.6]} 9... Nc5 {[%clk 0:02:55.6]}
10. Bxf6 {[%clk 0:03:01.2]} 10... gxf6 {[%clk 0:02:55]} 11. O-O-O {[%clk
0:03:01.8]} 11... Bd7 {[%clk 0:02:52.7]} 12. Kb1 {[%clk 0:03:02.3]} 12... O-O-O
{[%clk 0:02:51.9]} 13. f4 {[%clk 0:03:02.5]} 13... Kb8 {[%clk 0:02:49.4]} 14.
Rhf1 {[%clk 0:03:02.4]} 14... Be7 {[%clk 0:02:43.1]} 15. Rf3 {[%clk 0:03:01.1]}
15... h5 {[%clk 0:02:41.9]} 16. a3 {[%clk 0:02:59]} 16... Rc8 {[%clk 0:02:37.5]}
17. Ba2 {[%clk 0:02:57.4]} 17... Na4 {[%clk 0:02:18.7]} 18. Nxa4 {[%clk
0:02:42.9]} 18... Bxa4 {[%clk 0:02:19.6]} 19. Bb3 {[%clk 0:02:43.5]} 19... Bd7
{[%clk 0:02:17]} 20. f5 {[%clk 0:02:40.4]} 20... d5 {[%clk 0:02:05.3]} 21. fxe6
{[%clk 0:02:31.2]} 21... fxe6 {[%clk 0:02:05.5]} 22. exd5 {[%clk 0:02:31.5]}
22... e5 {[%clk 0:02:06]} 23. Nf5 {[%clk 0:02:31.7]} 23... Bc5 {[%clk
0:02:01.4]} 24. g3 {[%clk 0:02:21.6]} 24... a5 {[%clk 0:01:52.9]} 25. a4 {[%clk
0:02:15.9]} 25... Rhe8 {[%clk 0:01:28.6]} 26. d6 {[%clk 0:02:06.4]} 26... e4
{[%clk 0:01:27.2]} 27. Rf4 {[%clk 0:02:05.2]} 27... e3 {[%clk 0:01:21.8]} 28.
Qe2 {[%clk 0:02:01.2]} 28... Re5 {[%clk 0:01:18.3]} 29. Ne7 {[%clk 0:01:47.2]}
29... Rd8 {[%clk 0:01:14.8]} 30. Nd5 {[%clk 0:01:46.7]} 30... Qc6 {[%clk
0:01:05.3]} 31. Nxf6 {[%clk 0:01:39.3]} 31... Be6 {[%clk 0:01:05.7]} 32. Bc4
{[%clk 0:01:11.4]} 32... Rxd6 {[%clk 0:00:59.9]} 33. Rxd6 {[%clk 0:01:10.6]}
33... Qxd6 {[%clk 0:00:58.5]} 34. Bd3 {[%clk 0:01:10.5]} 34... Qc6 {[%clk
0:00:51.2]} 35. Nxh5 {[%clk 0:01:01.1]} 35... Qd5 {[%clk 0:00:46.7]} 36. c4
{[%clk 0:00:53.5]} 36... Qd7 {[%clk 0:00:46.3]} 37. Nf6 {[%clk 0:00:49.4]} 37...
Qxa4 {[%clk 0:00:45.7]} 38. Nd5 {[%clk 0:00:40.6]} 38... Qc6 {[%clk 0:00:27.4]}
39. Nc3 {[%clk 0:00:37.6]} 39... Bb4 {[%clk 0:00:27.2]} 40. Nb5 {[%clk 0:00:34]}
40... Qc5 {[%clk 0:00:19.3]} 41. h4 {[%clk 0:00:27]} 41... Bd7 {[%clk
0:00:15.4]} 42. g4 {[%clk 0:00:24.4]} 42... Bxb5 {[%clk 0:00:15]} 43. cxb5
{[%clk 0:00:24.7]} 43... Qd6 {[%clk 0:00:13.6]} 44. Re4 {[%clk 0:00:22.7]} 44...
Bc5 {[%clk 0:00:09.1]} 45. Rxe5 {[%clk 0:00:19.9]} 45... Qxe5 {[%clk 0:00:09]}
46. Qc2 {[%clk 0:00:20.4]} 46... Bd4 {[%clk 0:00:07.3]} 47. Be2 {[%clk
0:00:17.1]} 47... Qg3 {[%clk 0:00:07.2]} 48. h5 {[%clk 0:00:13.1]} 48... Qe1+
{[%clk 0:00:05]} 49. Ka2 {[%clk 0:00:13.3]} 49... Qb4 {[%clk 0:00:03.7]} 50. h6
{[%clk 0:00:10.5]} 50... a4 {[%clk 0:00:02.6]} 51. g5 {[%clk 0:00:10.7]} 51...
Qd6 {[%clk 0:00:01.6]} 52. g6 {[%clk 0:00:09.3]} 52... Qe6+ {[%clk 0:00:01.4]}
53. Bc4 {[%clk 0:00:09]} 53... Qg4 {[%clk 0:00:01.3]} 54. g7 {[%clk 0:00:08.5]}
54... a3 {[%clk 0:00:01.4]} 55. g8=Q+ {[%clk 0:00:07.6]} 1-0

[Event "*** Titled Tuesday Blitz"]
[Site "Chess.com"]
[Date "2020.12.01"]
[Round "10"]
[White "onetowin"]
[Black "cukin84"]
[Result "1/2-1/2"]
[WhiteElo "2015"]
[BlackElo "2165"]
[TimeControl "180+1"]
[EndTime "11:55:51 PST"]
[Termination "Game drawn by repetition"]

1. d4 {[%clk 0:03:00.9]} 1... f5 {[%clk 0:02:59.6]} 2. Nf3 {[%clk 0:03:01.4]}
2... Nf6 {[%clk 0:02:59.7]} 3. g3 {[%clk 0:03:01.7]} 3... g6 {[%clk 0:03:00]} 4.
Bg2 {[%clk 0:03:01.9]} 4... Bg7 {[%clk 0:03:00.4]} 5. O-O {[%clk 0:03:02]} 5...
d6 {[%clk 0:03:00.9]} 6. c4 {[%clk 0:03:02]} 6... O-O {[%clk 0:03:01.1]} 7. Nc3
{[%clk 0:03:01.5]} 7... Qe8 {[%clk 0:03:01.4]} 8. b3 {[%clk 0:02:49.3]} 8... c6
{[%clk 0:02:57.9]} 9. Re1 {[%clk 0:02:40.1]} 9... e5 {[%clk 0:02:57.3]} 10. dxe5
{[%clk 0:02:30.7]} 10... dxe5 {[%clk 0:02:58.2]} 11. Ba3 {[%clk 0:02:30.4]}
11... Rf7 {[%clk 0:02:56.4]} 12. Bd6 {[%clk 0:02:12.9]} 12... e4 {[%clk
0:02:54.3]} 13. Nd4 {[%clk 0:02:02.6]} 13... Nbd7 {[%clk 0:02:42.9]} 14. c5
{[%clk 0:02:00.5]} 14... Ng4 {[%clk 0:02:35.3]} 15. b4 {[%clk 0:01:45]} 15... b6
{[%clk 0:02:28.1]} 16. Qd2 {[%clk 0:01:35.1]} 16... bxc5 {[%clk 0:02:26.4]} 17.
bxc5 {[%clk 0:01:36]} 17... Nde5 {[%clk 0:02:06]} 18. h3 {[%clk 0:01:23.2]}
18... Nc4 {[%clk 0:01:48.7]} 19. Qc2 {[%clk 0:01:20.3]} 19... Bxd4 {[%clk
0:01:40.4]} 20. hxg4 {[%clk 0:01:12.2]} 20... fxg4 {[%clk 0:01:30.4]} 21. e3
{[%clk 0:01:12.4]} 21... Bg7 {[%clk 0:01:27.4]} 22. Nxe4 {[%clk 0:01:01.3]}
22... Be6 {[%clk 0:01:21.1]} 23. Ng5 {[%clk 0:00:58.5]} 23... Nxd6 {[%clk
0:01:16]} 24. cxd6 {[%clk 0:00:55.5]} 24... Rf5 {[%clk 0:01:14.7]} 25. Nxe6
{[%clk 0:00:44.6]} 25... Qxe6 {[%clk 0:01:13.6]} 26. Qxc6 {[%clk 0:00:44.4]}
26... Rc8 {[%clk 0:01:09.9]} 27. d7 {[%clk 0:00:36.9]} 27... Qxc6 {[%clk
0:01:05.3]} 28. Bxc6 {[%clk 0:00:34.3]} 28... Rd8 {[%clk 0:01:03.2]} 29. Rac1
{[%clk 0:00:32.8]} 29... Bf6 {[%clk 0:00:55.4]} 30. Be4 {[%clk 0:00:31.1]} 30...
Re5 {[%clk 0:00:53.6]} 31. Bc6 {[%clk 0:00:26.7]} 31... Kf8 {[%clk 0:00:49.8]}
32. Red1 {[%clk 0:00:26.9]} 32... Ke7 {[%clk 0:00:49.7]} 33. Ba4 {[%clk
0:00:26]} 33... Ra5 {[%clk 0:00:46]} 34. Rc4 {[%clk 0:00:22.3]} 34... h5 {[%clk
0:00:43.4]} 35. Rb4 {[%clk 0:00:14.8]} 35... Rc5 {[%clk 0:00:42]} 36. Rb7 {[%clk
0:00:11.8]} 36... Rc4 {[%clk 0:00:41.4]} 37. Bb3 {[%clk 0:00:10.2]} 37... Rc5
{[%clk 0:00:38.3]} 38. Rxa7 {[%clk 0:00:10]} 38... Be5 {[%clk 0:00:35.5]} 39.
Rb7 {[%clk 0:00:10]} 39... g5 {[%clk 0:00:34.7]} 40. Rb4 {[%clk 0:00:08.9]}
40... Kf6 {[%clk 0:00:32]} 41. Rb6+ {[%clk 0:00:07.9]} 41... Ke7 {[%clk
0:00:31.2]} 42. Rb4 {[%clk 0:00:08]} 42... Bd6 {[%clk 0:00:28.5]} 43. Rbd4
{[%clk 0:00:07.5]} 43... Rxd7 {[%clk 0:00:27.1]} 44. Rd5 {[%clk 0:00:05.8]}
44... Rxd5 {[%clk 0:00:24.9]} 45. Rxd5 {[%clk 0:00:06.4]} 45... h4 {[%clk
0:00:25]} 46. gxh4 {[%clk 0:00:03.3]} 46... gxh4 {[%clk 0:00:24.8]} 47. Rg5
{[%clk 0:00:03.2]} 47... g3 {[%clk 0:00:24.3]} 48. fxg3 {[%clk 0:00:04.1]} 48...
hxg3 {[%clk 0:00:24]} 49. Kg2 {[%clk 0:00:04.6]} 49... Rc7 {[%clk 0:00:23.1]}
50. Rg7+ {[%clk 0:00:04.6]} 50... Kf6 {[%clk 0:00:22.9]} 51. Rxc7 {[%clk
0:00:05.5]} 51... Bxc7 {[%clk 0:00:23.3]} 52. Bc2 {[%clk 0:00:05.2]} 52... Ke6
{[%clk 0:00:23.3]} 53. e4 {[%clk 0:00:05.2]} 53... Kd7 {[%clk 0:00:22.4]} 54.
Kf3 {[%clk 0:00:05.7]} 54... Kc6 {[%clk 0:00:22.6]} 55. Bb3 {[%clk 0:00:06.4]}
55... Kc5 {[%clk 0:00:22.4]} 56. Bd5 {[%clk 0:00:07.3]} 56... Kd4 {[%clk
0:00:22.5]} 57. Kg2 {[%clk 0:00:07.6]} 57... Bd6 {[%clk 0:00:22.7]} 58. Kf3
{[%clk 0:00:07.7]} 58... Be5 {[%clk 0:00:22.1]} 59. Kg2 {[%clk 0:00:08]} 59...
Ke3 {[%clk 0:00:22.5]} 60. Bc6 {[%clk 0:00:05.8]} 60... Kf4 {[%clk 0:00:21.7]}
61. Bd5 {[%clk 0:00:06.7]} 61... Bd4 {[%clk 0:00:21.7]} 62. Bc6 {[%clk
0:00:07.6]} 62... Bc5 {[%clk 0:00:21.3]} 63. Bd5 {[%clk 0:00:08.5]} 63... Bd4
{[%clk 0:00:21.6]} 64. Bc6 {[%clk 0:00:09.4]} 64... Bc5 {[%clk 0:00:22]} 65. Bd5
{[%clk 0:00:10.3]} 65... Bd4 {[%clk 0:00:22.4]} 1/2-1/2

[Event "*** Titled Tuesday Blitz"]
[Site "Chess.com"]
[Date "2020.12.01"]
[Round "10"]
[White "AlexeiShirov"]
[Black "Gloomy_Wanderer"]
[Result "0-1"]
[WhiteElo "2837"]
[BlackElo "2722"]
[TimeControl "180+1"]
[EndTime "11:55:53 PST"]
[Termination "Gloomy_Wanderer won by resignation"]

1. e4 {[%clk 0:03:00.9]} 1... e5 {[%clk 0:02:57.7]} 2. Nf3 {[%clk 0:03:00.9]}
2... Nc6 {[%clk 0:02:58]} 3. Bb5 {[%clk 0:03:00.3]} 3... a6 {[%clk 0:02:58.1]}
4. Ba4 {[%clk 0:03:00.1]} 4... Nf6 {[%clk 0:02:58.5]} 5. O-O {[%clk 0:03:00.1]}
5... Be7 {[%clk 0:02:58.7]} 6. Re1 {[%clk 0:02:59.8]} 6... b5 {[%clk 0:02:59.1]}
7. Bb3 {[%clk 0:02:59.5]} 7... O-O {[%clk 0:03:00]} 8. h3 {[%clk 0:02:58.1]}
8... d6 {[%clk 0:03:00]} 9. c3 {[%clk 0:02:57.8]} 9... Nb8 {[%clk 0:03:00.1]}
10. d4 {[%clk 0:02:57.6]} 10... Nbd7 {[%clk 0:03:00.4]} 11. c4 {[%clk
0:02:58.2]} 11... c6 {[%clk 0:03:00.2]} 12. Nc3 {[%clk 0:02:56.5]} 12... b4
{[%clk 0:02:56.7]} 13. Ne2 {[%clk 0:02:56.4]} 13... Nxe4 {[%clk 0:02:53.8]} 14.
Qc2 {[%clk 0:02:56.4]} 14... f5 {[%clk 0:02:53.8]} 15. c5+ {[%clk 0:02:35.2]}
15... d5 {[%clk 0:02:52.1]} 16. dxe5 {[%clk 0:02:02]} 16... Ndxc5 {[%clk
0:02:39.8]} 17. Ned4 {[%clk 0:01:59.1]} 17... Bb7 {[%clk 0:02:33.1]} 18. Bf4
{[%clk 0:01:40.6]} 18... a5 {[%clk 0:02:24.5]} 19. Ba4 {[%clk 0:01:31.2]} 19...
Qb6 {[%clk 0:02:19.5]} 20. Rad1 {[%clk 0:01:13.8]} 20... Nxa4 {[%clk 0:02:08.2]}
21. Qxa4 {[%clk 0:01:11.6]} 21... c5 {[%clk 0:02:04.5]} 22. Qd7 {[%clk
0:01:10.8]} 22... cxd4 {[%clk 0:01:29.5]} 23. Qxe7 {[%clk 0:01:10.7]} 23... Rae8
{[%clk 0:01:18.4]} 24. Qh4 {[%clk 0:01:10]} 24... h6 {[%clk 0:01:09.5]} 25. Qh5
{[%clk 0:01:02]} 25... d3 {[%clk 0:00:59.1]} 26. Be3 {[%clk 0:01:01.5]} 26...
Qa6 {[%clk 0:00:59.3]} 27. Bd4 {[%clk 0:00:58.4]} 27... Bc8 {[%clk 0:00:42.3]}
28. Nh4 {[%clk 0:00:51.5]} 28... Kh7 {[%clk 0:00:36.2]} 29. e6 {[%clk
0:00:44.6]} 29... Rxe6 {[%clk 0:00:26.8]} 30. Nxf5 {[%clk 0:00:43.8]} 30... d2
{[%clk 0:00:17.5]} 31. Re3 {[%clk 0:00:42.6]} 31... Rg6 {[%clk 0:00:16.4]} 32.
Nh4 {[%clk 0:00:40.7]} 32... Rg5 {[%clk 0:00:14.9]} 33. Qe2 {[%clk 0:00:40.1]}
33... Qc6 {[%clk 0:00:07.2]} 34. f3 {[%clk 0:00:38.4]} 34... Ba6 {[%clk
0:00:07.3]} 35. Rd3 {[%clk 0:00:36.9]} 35... Bxd3 {[%clk 0:00:06.9]} 36. Qxd3
{[%clk 0:00:36.6]} 36... Qc4 {[%clk 0:00:07]} 37. Rxd2 {[%clk 0:00:35.9]} 37...
Qxd3 {[%clk 0:00:06.2]} 38. Rxd3 {[%clk 0:00:35.9]} 38... Nd6 {[%clk 0:00:06.8]}
39. Re3 {[%clk 0:00:33.7]} 39... Nf5 {[%clk 0:00:06.1]} 40. Nxf5 {[%clk
0:00:32.9]} 40... Rgxf5 {[%clk 0:00:07]} 41. Re6 {[%clk 0:00:32]} 41... R5f7
{[%clk 0:00:06.9]} 42. Rd6 {[%clk 0:00:31.4]} 42... Rc8 {[%clk 0:00:07]} 43.
Rxd5 {[%clk 0:00:30.9]} 43... Rc1+ {[%clk 0:00:07]} 44. Kh2 {[%clk 0:00:30]}
44... Rd1 {[%clk 0:00:05.3]} 45. Kg3 {[%clk 0:00:22.8]} 45... Rc7 {[%clk
0:00:05.1]} 46. Kf4 {[%clk 0:00:21.5]} 46... Rd2 {[%clk 0:00:03.9]} 47. g4
{[%clk 0:00:20.4]} 47... Re7 {[%clk 0:00:03]} 48. h4 {[%clk 0:00:15.3]} 48...
Rd3 {[%clk 0:00:03.2]} 49. g5 {[%clk 0:00:14.1]} 49... Rf7+ {[%clk 0:00:02.9]}
50. Kg4 {[%clk 0:00:13.6]} 50... Rdxf3 {[%clk 0:00:03.2]} 51. g6+ {[%clk
0:00:13.5]} 51... Kxg6 {[%clk 0:00:03.3]} 52. h5+ {[%clk 0:00:11.7]} 52... Kh7
{[%clk 0:00:03.7]} 53. Be5 {[%clk 0:00:11.7]} 53... R3f5 {[%clk 0:00:03.5]} 54.
Rxa5 {[%clk 0:00:11.2]} 54... Rg5+ {[%clk 0:00:03.9]} 55. Kh4 {[%clk 0:00:11.3]}
55... Rff5 {[%clk 0:00:04.8]} 56. Rb5 {[%clk 0:00:09.9]} 56... Rxe5 {[%clk
0:00:05]} 57. Rxb4 {[%clk 0:00:09.6]} 57... Rxh5+ {[%clk 0:00:05.4]} 0-1